fUSD/lending_fUSD_20250207
["ID","MTS","AMOUNT","RATE_DAILY","PERIOD"]
[352131624,1738956677808,-1555.24,0.00017123,2]
[352131625,1738956677817,-3666.13,0.00017123,2]
[352131626,1738956677826,-1049.9,0.00017123,2]
[352131627,1738956677835,-500.0,0.00017123,2]
[352131628,1738956677845,-1298.26,0.00017123,2]
[352131629,1738956677855,-301.63,0.00017123,2]
[352131630,1738956677864,-1031.0,0.00017129,2]
[352131631,1738956677874,-186.245,0.00017138,2]
[352131632,1738956677883,-1031.0,0.00017156,2]
[352131633,1738956677892,-500.0,0.00017173,2]
[352131634,1738956677902,-1031.0,0.00017184,2]
[352131635,1738956677911,-505555.85968544,0.00017197,2]
[352131636,1738956677922,-151.55226401,0.00017203,2]
[352131637,1738956677931,-1031.0,0.00017211,2]
[352131638,1738956677940,-152.17,0.00017212,2]
[352131639,1738956677950,-1031.0,0.00017238,2]
[352131640,1738956677959,-518.07,0.00017258,2]
[352131641,1738956677968,-500.27,0.00017258,2]
[352131642,1738956677978,-500.0,0.00017258,2]
[352131643,1738956677987,-500.0,0.00017258,2]
[352131644,1738956677995,-500.0,0.00017258,2]
[352131645,1738956678005,-500.0,0.00017258,2]
[352131646,1738956678014,-500.0,0.00017258,2]
[352131647,1738956678024,-500.0,0.00017258,2]
[352131648,1738956678033,-500.0,0.00017258,2]
[352131649,1738956678045,-500.0,0.00017258,2]
[352131650,1738956678054,-500.0,0.00017258,2]
[352131651,1738956678063,-500.0,0.00017258,2]
[352131652,1738956678072,-183.02253955,0.00017258,2]
[352131653,1738956678082,-500.0,0.00017258,2]
[352131654,1738956678091,-500.0,0.00017258,2]
[352131655,1738956678100,-500.0,0.00017258,2]
[352131656,1738956678109,-500.0,0.00017258,2]
[352131657,1738956678119,-324.78,0.00017258,2]
[352131658,1738956678129,-500.0,0.00017258,2]
[352131659,1738956678139,-500.0,0.00017258,2]
[352131660,1738956678149,-500.0,0.00017258,2]
[352131661,1738956678159,-500.0,0.00017258,2]
[352131662,1738956678168,-500.0,0.00017258,2]
[352131663,1738956678178,-500.0,0.00017258,2]
[352131664,1738956678188,-500.0,0.00017258,2]
[352131665,1738956678198,-500.0,0.00017258,2]
[352131666,1738956678207,-500.0,0.00017258,2]
[352131667,1738956678216,-500.0,0.00017258,2]
[352131668,1738956678226,-500.0,0.00017258,2]
[352131669,1738956678236,-500.0,0.00017258,2]
[352131670,1738956678245,-540.67,0.00017258,2]
[352131671,1738956678256,-557.1,0.00017258,2]
[352131672,1738956678265,-500.0,0.00017258,2]
[352131673,1738956678275,-500.0,0.00017258,2]
[352131674,1738956678285,-500.0,0.00017258,2]
[352131675,1738956678295,-500.0,0.00017258,2]
[352131676,1738956678305,-500.0,0.00017258,2]
[352131677,1738956678315,-500.0,0.00017258,2]
[352131678,1738956678325,-500.0,0.00017258,2]
[352131679,1738956678335,-500.0,0.00017258,2]
[352131680,1738956678344,-500.0,0.00017258,2]
[352131681,1738956678353,-530.71,0.00017258,2]
[352131682,1738956678363,-500.0,0.00017258,2]
[352131683,1738956678373,-2942.64,0.00017258,2]
[352131684,1738956678384,-500.0,0.00017258,2]
[352131685,1738956678394,-1743.62,0.00017258,2]
[352131686,1738956678404,-500.0,0.00017258,2]
[352131687,1738956678414,-720.06,0.00017258,2]
[352131688,1738956678424,-5046.81,0.00017258,2]
[352131689,1738956678433,-500.0,0.00017258,2]
[352131690,1738956678444,-500.0,0.00017258,2]
[352131691,1738956678454,-500.0,0.00017258,2]
[352131692,1738956678464,-500.0,0.00017258,2]
[352131693,1738956678474,-1994.07,0.00017258,2]
[352131694,1738956678484,-1138.25,0.00017258,2]
[352131695,1738956678494,-500.0,0.00017258,2]
[352131696,1738956678504,-500.0,0.00017258,2]
[352131697,1738956678514,-3516.18,0.00017258,2]
[352131698,1738956678524,-500.0,0.00017258,2]
[352131699,1738956678533,-500.0,0.00017258,2]
[352131700,1738956678544,-1024.51,0.00017258,2]
[352131701,1738956678554,-2173.49,0.00017258,2]
[352131702,1738956678564,-612.99,0.00017258,2]
[352131703,1738956678575,-1229.36,0.00017258,2]
[352131704,1738956678589,-2227.07,0.00017258,2]
[352131705,1738956678599,-2301.73,0.00017258,2]
[352131706,1738956678609,-1183.89,0.00017258,2]
[352131707,1738956678619,-518.71,0.00017258,2]
[352131708,1738956678628,-2133.71,0.00017258,2]
[352131709,1738956678638,-504.04234623,0.00017258,2]
[352131710,1738956678647,-500.0,0.00017258,2]
[352131711,1738956678658,-202.05757384,0.00017258,2]
[352131712,1738956678668,-2304.96,0.00017258,2]
[352131713,1738956678677,-500.0,0.00017258,2]
[352131714,1738956678687,-4101.49,0.00017258,2]
[352131715,1738956678696,-629.73,0.00017258,2]
[352131716,1738956678706,-10904.08,0.00017258,2]
[352131717,1738956678716,-1990.52,0.00017258,2]
[352131718,1738956678725,-500.0,0.00017258,2]
[352131719,1738956678735,-500.0,0.00017258,2]
[352131720,1738956678745,-500.0,0.00017258,2]
[352131721,1738956678755,-1994.74,0.00017258,2]
[352131722,1738956678764,-500.0,0.00017258,2]
[352131723,1738956678774,-2018.74,0.00017258,2]
[352131724,1738956678783,-500.0,0.00017258,2]
[352131725,1738956678795,-500.0,0.00017258,2]
[352131726,1738956678804,-500.0,0.00017258,2]
[352131727,1738956678814,-500.0,0.00017258,2]
[352131728,1738956678825,-1695.7,0.00017258,2]
[352131729,1738956678835,-363.69,0.00017258,2]
[352131730,1738956678844,-3966.69,0.00017258,2]
[352131731,1738956678854,-662.29,0.00017258,2]
[352131732,1738956678863,-1062.51,0.00017259,2]
[352131733,1738956678872,-500.0,0.00017259,2]
[352131734,1738956678881,-1219.59,0.00017259,2]
[352131735,1738956678890,-857.35,0.00017259,2]
[352131736,1738956678900,-500.0,0.00017259,2]
[352131737,1738956678910,-526.56,0.00017259,2]
[352131738,1738956678919,-500.0,0.00017259,2]
[352131739,1738956678928,-547.58,0.00017259,2]
[352131740,1738956678938,-500.0,0.00017259,2]
[352131741,1738956678947,-500.0,0.00017259,2]
[352131742,1738956678957,-1136.81,0.00017259,2]
[352131743,1738956678967,-533.79,0.00017259,2]
[352131744,1738956678976,-500.0,0.00017259,2]
[352131745,1738956678986,-500.0,0.00017259,2]
[352131746,1738956678995,-1186.33,0.00017259,2]
[352131747,1738956679005,-500.0,0.00017259,2]
[352131748,1738956679014,-529.03,0.00017259,2]
[352131749,1738956679024,-1230.22,0.00017259,2]
[352131750,1738956679033,-500.0,0.00017259,2]
[352131751,1738956679044,-1245.85,0.00017259,2]
[352131752,1738956679054,-500.0,0.00017259,2]
[352131753,1738956679065,-1446.41,0.00017259,2]
[352131754,1738956679075,-565.43,0.00017259,2]
[352131755,1738956679084,-564.24,0.00017259,2]
[352131756,1738956679093,-500.0,0.00017259,2]
[352131757,1738956679103,-550.96,0.00017259,2]
[352131758,1738956679113,-500.0,0.00017259,2]
[352131759,1738956679122,-1579.64,0.00017259,2]
[352131760,1738956679131,-520.2,0.00017259,2]
[352131761,1738956679141,-1605.34,0.00017259,2]
[352131762,1738956679151,-1579.05,0.00017259,2]
[352131763,1738956679161,-551.37,0.00017259,2]
[352131764,1738956679172,-601.14,0.00017259,2]
[352131765,1738956679181,-500.0,0.00017259,2]
[352131766,1738956679191,-1184.1,0.00017259,2]
[352131767,1738956679201,-678.58,0.00017259,2]
[352131768,1738956679211,-500.0,0.00017259,2]
[352131769,1738956679220,-515.45,0.00017259,2]
[352131770,1738956679229,-521.99,0.00017259,2]
[352131771,1738956679239,-552.13,0.00017259,2]
[352131772,1738956679249,-2651.33,0.00017259,2]
[352131773,1738956679258,-615.95,0.00017259,2]
[352131774,1738956679268,-500.0,0.00017259,2]
[352131775,1738956679278,-252.926132,0.0001726,2]
[352131776,1738956679288,-252.926132,0.0001726,2]
[352131777,1738956679298,-151.0,0.0001726,2]
[352131778,1738956679307,-152.704996,0.0001726,2]
[352131779,1738956679317,-152.704996,0.0001726,2]
[352131780,1738956679328,-151.0,0.0001726,2]
[352131781,1738956679339,-151.0,0.0001726,2]
[352131782,1738956679349,-151.0,0.0001726,2]
[352131783,1738956679359,-895.248672,0.0001726,2]
[352131784,1738956679368,-895.248672,0.0001726,2]
[352131785,1738956679378,-500.0,0.0001726,2]
[352131786,1738956679387,-500.0,0.0001726,2]
[352131787,1738956679397,-233.95958663,0.0001726,2]
[352131788,1738956679406,-500.0,0.0001726,2]
[352131789,1738956679416,-659.78,0.0001726,2]
[352131790,1738956679425,-500.0,0.0001726,2]
[352131791,1738956679434,-500.0,0.0001726,2]
[352131792,1738956679444,-500.0,0.0001726,2]
[352131793,1738956679454,-500.0,0.0001726,2]
[352131794,1738956679469,-500.0,0.0001726,2]
[352131795,1738956679478,-500.0,0.0001726,2]
[352131796,1738956679487,-500.0,0.0001726,2]
[352131797,1738956679497,-513.84,0.0001726,2]
[352131798,1738956679506,-1712.36,0.0001726,2]
[352131799,1738956679517,-1938.63,0.0001726,2]
[352131800,1738956679526,-1697.97,0.0001726,2]
[352131801,1738956679536,-500.0,0.0001726,2]
[352131802,1738956679546,-1225.54,0.0001726,2]
[352131803,1738956679555,-500.0,0.0001726,2]
[352131804,1738956679564,-500.0,0.0001726,2]
[352131805,1738956679578,-676.85,0.0001726,2]
[352131806,1738956679588,-254.43652312,0.0001726,2]
[352131807,1738956679597,-500.0,0.0001726,2]
[352131808,1738956679606,-1685.31,0.0001726,60]
[352131809,1738956679617,-500.0,0.0001726,2]
[352131810,1738956679626,-541.77,0.0001726,2]
[352131811,1738956679637,-500.0,0.0001726,2]
[352131812,1738956679647,-667.78,0.0001726,2]
[352131813,1738956679661,-573.49,0.0001726,2]
[352131814,1738956679670,-1308.11,0.0001726,2]
[352131815,1738956679679,-1722.81,0.0001726,2]
[352131816,1738956679689,-500.0,0.0001726,2]
[352131817,1738956679698,-925.93,0.0001726,2]
[352131818,1738956679707,-500.0,0.0001726,2]
[352131819,1738956679716,-1095.49,0.0001726,2]
[352131820,1738956679726,-649.37,0.0001726,2]
[352131821,1738956679736,-500.0,0.0001726,2]
[352131822,1738956679745,-776.83,0.0001726,2]
[352131823,1738956679755,-1010.35,0.0001726,2]
[352131824,1738956679764,-1263.77,0.0001726,2]
[352131825,1738956679773,-500.0,0.0001726,2]
[352131826,1738956679782,-500.0,0.0001726,2]
[352131827,1738956679793,-500.0,0.0001726,2]
[352131828,1738956679802,-1637.13,0.0001726,2]
[352131829,1738956679811,-694.17,0.0001726,2]
[352131830,1738956679820,-500.0,0.0001726,2]
[352131831,1738956679830,-730.01,0.0001726,2]
[352131832,1738956679839,-500.0,0.0001726,2]
[352131833,1738956679848,-1444.08,0.0001726,2]
[352131834,1738956679858,-500.0,0.0001726,2]
[352131835,1738956679868,-500.0,0.0001726,2]
[352131836,1738956679878,-500.0,0.0001726,2]
[352131837,1738956679888,-712.73,0.0001726,2]
[352131838,1738956679897,-500.0,0.0001726,2]
[352131839,1738956679906,-500.0,0.0001726,2]
[352131840,1738956679916,-500.0,0.0001726,2]
[352131841,1738956679925,-500.0,0.0001726,2]
[352131842,1738956679936,-500.0,0.0001726,2]
[352131843,1738956679945,-500.0,0.0001726,2]
[352131844,1738956679955,-1676.26,0.0001726,2]
[352131845,1738956679964,-500.0,0.0001726,2]
[352131846,1738956679974,-500.0,0.0001726,2]
[352131847,1738956679984,-500.0,0.0001726,2]
[352131848,1738956679993,-500.0,0.0001726,2]
[352131849,1738956680002,-500.0,0.0001726,2]
[352131850,1738956680011,-1138.99,0.0001726,2]
[352131851,1738956680020,-500.0,0.0001726,2]
[352131852,1738956680029,-500.0,0.0001726,2]
[352131853,1738956680039,-500.0,0.0001726,2]
[352131854,1738956680048,-500.0,0.0001726,2]
[352131855,1738956680057,-500.0,0.0001726,2]
[352131856,1738956680067,-1316.0,0.0001726,2]
[352131857,1738956680076,-725.14,0.0001726,2]
[352131858,1738956680085,-1188.45,0.0001726,2]
[352131859,1738956680094,-516.4,0.0001726,2]
[352131860,1738956680104,-510.03,0.0001726,2]
[352131861,1738956680113,-500.0,0.0001726,2]
[352131862,1738956680122,-500.0,0.0001726,2]
[352131863,1738956680131,-1472.92,0.0001726,2]
[352131864,1738956680141,-1412.12,0.0001726,2]
[352131865,1738956680150,-500.0,0.0001726,2]
[352131866,1738956680159,-529.81,0.0001726,2]
[352131867,1738956680168,-981.75,0.0001726,2]
[352131868,1738956680177,-520.02,0.0001726,2]
[352131869,1738956680187,-647.02,0.0001726,2]
[352131870,1738956680341,-1033.68,0.0001726,2]
[352131871,1738956680353,-522.48,0.0001726,2]
[352131872,1738956680362,-500.0,0.0001726,2]
[352131873,1738956680373,-500.0,0.0001726,2]
[352131874,1738956680382,-662.32,0.0001726,2]
[352131875,1738956680391,-1353.23,0.0001726,2]
[352131876,1738956680401,-508.39,0.0001726,2]
[352131877,1738956680410,-1634.27,0.0001726,2]
[352131878,1738956680419,-500.0,0.0001726,2]
[352131879,1738956680428,-544.73,0.0001726,2]
[352131880,1738956680437,-529.48,0.0001726,2]
[352131881,1738956680447,-500.0,0.0001726,2]
[352131882,1738956680457,-939.05,0.0001726,2]
[352131883,1738956680466,-1428.68,0.0001726,2]
[352131884,1738956680476,-500.0,0.0001726,2]
[352131885,1738956680485,-690.69,0.0001726,2]
[352131886,1738956680495,-1130.37,0.0001726,2]
[352131887,1738956680505,-500.0,0.0001726,2]
[352131888,1738956680515,-500.0,0.0001726,2]
[352131889,1738956680524,-1381.35,0.0001726,2]
[352131890,1738956680534,-580.24,0.0001726,2]
[352131891,1738956680545,-1489.45,0.0001726,2]
[352131892,1738956680554,-500.0,0.0001726,2]
[352131893,1738956680564,-500.0,0.0001726,2]
[352131894,1738956680574,-1435.35,0.0001726,2]
[352131895,1738956680588,-1168.21,0.0001726,2]
[352131896,1738956680597,-3966.24,0.0001726,2]
[352131897,1738956680607,-648.0,0.0001726,2]
[352131898,1738956680617,-1165.23,0.0001726,2]
[352131899,1738956680628,-500.0,0.0001726,2]
[352131900,1738956680638,-2615.59,0.0001726,2]
[352131901,1738956680647,-830.58,0.0001726,2]
[352131902,1738956680658,-2112.58,0.0001726,2]
[352131903,1738956680668,-1540.26,0.0001726,2]
[352131904,1738956680678,-1751.47,0.0001726,2]
[352131905,1738956680687,-1387.93,0.0001726,2]
[352131906,1738956680697,-2850.19,0.0001726,2]
[352131907,1738956680706,-603.96,0.0001726,2]
[352131908,1738956680716,-500.0,0.0001726,2]
[352131909,1738956680725,-2172.91,0.0001726,2]
[352131910,1738956680735,-1670.17,0.0001726,2]
[352131911,1738956680744,-500.0,0.0001726,2]
[352131912,1738956680755,-1335.8,0.0001726,2]
[352131913,1738956680765,-1813.96,0.0001726,2]
[352131914,1738956680775,-500.0,0.0001726,2]
[352131915,1738956680785,-500.0,0.0001726,2]
[352131916,1738956680799,-1815.88,0.0001726,2]
[352131917,1738956680809,-1078.85,0.0001726,2]
[352131918,1738956680820,-500.0,0.0001726,2]
[352131919,1738956680829,-650.97,0.0001726,2]
[352131920,1738956680839,-1933.83,0.0001726,2]
[352131921,1738956680850,-1477.72,0.0001726,2]
[352131922,1738956680859,-520.8,0.0001726,2]
[352131923,1738956680869,-1313.81,0.0001726,2]
[352131924,1738956680878,-618.23,0.0001726,2]
[352131925,1738956680888,-500.0,0.0001726,2]
[352131926,1738956680897,-2982.88,0.0001726,2]
[352131927,1738956680907,-500.0,0.0001726,2]
[352131928,1738956680917,-500.0,0.0001726,2]
[352131929,1738956680926,-523.72,0.0001726,2]
[352131930,1738956680936,-1656.24,0.0001726,2]
[352131931,1738956680946,-3275.06,0.0001726,2]
[352131932,1738956680955,-1882.91,0.0001726,2]
[352131933,1738956680965,-1686.85,0.0001726,2]
[352131934,1738956680975,-972.36,0.0001726,2]
[352131935,1738956680985,-993.82,0.0001726,2]
[352131936,1738956680995,-1338.75,0.0001726,2]
[352131937,1738956681006,-2377.09,0.0001726,2]
[352131938,1738956681015,-1209.72,0.0001726,2]
[352131939,1738956681025,-3708.92,0.0001726,2]
[352131940,1738956681035,-2135.6,0.0001726,2]
[352131941,1738956681050,-2799.93,0.0001726,2]
[352131942,1738956681060,-2642.08,0.0001726,2]
[352131943,1738956681070,-928.35,0.0001726,2]
[352131944,1738956681081,-2130.68,0.0001726,2]
[352131945,1738956681091,-2968.87,0.0001726,2]
[352131946,1738956681101,-500.0,0.0001726,2]
[352131947,1738956681111,-500.0,0.0001726,2]
[352131948,1738956681121,-4265.56,0.0001726,2]
[352131949,1738956681131,-1264.49,0.0001726,2]
[352131950,1738956681141,-500.0,0.0001726,2]
[352131951,1738956681151,-2756.51,0.0001726,2]
[352131952,1738956681160,-1952.36,0.0001726,2]
[352131953,1738956681170,-500.0,0.0001726,2]
[352131954,1738956681180,-2675.04,0.0001726,2]
[352131955,1738956681189,-1643.06,0.0001726,2]
[352131956,1738956681199,-2535.68,0.0001726,2]
[352131957,1738956681208,-2559.02,0.0001726,2]
[352131958,1738956681219,-982.62,0.0001726,2]
[352131959,1738956681228,-1048.24,0.0001726,2]
[352131960,1738956681238,-652.99,0.0001726,2]
[352131961,1738956681247,-3904.04,0.0001726,2]
[352131962,1738956681257,-500.0,0.0001726,2]
[352131963,1738956681267,-1687.81,0.0001726,2]
[352131964,1738956681277,-1846.01,0.0001726,2]
[352131965,1738956681287,-500.0,0.0001726,2]
[352131966,1738956681299,-500.0,0.0001726,2]
[352131967,1738956681309,-8054.78,0.0001726,2]
[352131968,1738956681319,-2697.16,0.0001726,2]
[352131969,1738956681329,-1537.43,0.0001726,2]
[352131970,1738956681338,-4171.0,0.0001726,2]
[352131971,1738956681347,-500.0,0.0001726,2]
[352131972,1738956681357,-4545.2,0.0001726,2]
[352131973,1738956681367,-871.03,0.0001726,2]
[352131974,1738956681377,-1100.92,0.0001726,2]
[352131975,1738956681395,-4717.88,0.0001726,2]
[352131976,1738956681404,-1186.63,0.0001726,2]
[352131977,1738956681414,-778.34,0.0001726,2]
[352131978,1738956681424,-500.0,0.0001726,2]
[352131979,1738956681433,-6146.82,0.0001726,2]
[352131980,1738956681443,-1352.28,0.0001726,2]
[352131981,1738956681453,-2922.19,0.0001726,2]
[352131982,1738956681462,-500.0,0.0001726,2]
[352131983,1738956681472,-823.38,0.0001726,2]
[352131984,1738956681482,-2029.74,0.0001726,2]
[352131985,1738956681492,-500.0,0.0001726,2]
[352131986,1738956681502,-500.0,0.0001726,2]
[352131987,1738956681511,-4297.56,0.0001726,2]
[352131988,1738956681521,-4260.15,0.0001726,2]
[352131989,1738956681531,-1150.5,0.0001726,2]
[352131990,1738956681543,-4984.09,0.0001726,2]
[352131991,1738956681552,-630.57,0.0001726,2]
[352131992,1738956681562,-4214.42,0.0001726,2]
[352131993,1738956681573,-1455.84,0.0001726,2]
[352131994,1738956681587,-1559.73,0.0001726,2]
[352131995,1738956681598,-1241.92,0.0001726,2]
[352131996,1738956681608,-2692.24,0.0001726,2]
[352131997,1738956681618,-500.0,0.0001726,2]
[352131998,1738956681628,-500.0,0.0001726,2]
[352131999,1738956681638,-1067.17,0.0001726,2]
[352132000,1738956681648,-881.73,0.0001726,2]
[352132001,1738956681659,-3307.35,0.0001726,2]
[352132002,1738956681669,-2646.43,0.0001726,2]
[352132003,1738956681679,-500.0,0.0001726,2]
[352132004,1738956681689,-742.64,0.0001726,2]
[352132005,1738956681699,-500.0,0.0001726,2]
[352132006,1738956681709,-548.98,0.0001726,2]
[352132007,1738956681719,-3381.29,0.0001726,2]
[352132008,1738956681729,-797.92,0.0001726,2]
[352132009,1738956681739,-3042.11,0.0001726,2]
[352132010,1738956681749,-553.95,0.0001726,2]
[352132011,1738956681758,-527.06,0.0001726,2]
[352132012,1738956681768,-500.0,0.0001726,2]
[352132013,1738956681778,-1555.24,0.0001726,2]
[352132014,1738956681789,-3666.13,0.0001726,2]
[352132015,1738956681799,-1049.9,0.0001726,2]
[352132016,1738956681808,-500.0,0.0001726,2]
[352132017,1738956681818,-1298.26,0.0001726,2]
[352132018,1738956681828,-1031.0,0.00017266,2]
[352132019,1738956681838,-1031.0,0.00017293,2]
[352132020,1738956681848,-1290.42600197,0.00017297,2]
[352132021,1738956681857,-1048.0,0.00017321,2]
[352132022,1738956681867,-152.0,0.00017355,3]
[352132023,1738956681876,-1290.42600194,0.00017364,2]
[352132024,1738956681886,-3736.09661,0.0001737,2]
[352132025,1738956681895,-431.0,0.0001738,2]
[352132026,1738956681905,-1946.0320035,0.00017385,2]
[352132027,1738956681914,-500.27,0.00017395,2]
[352132028,1738956681924,-500.0,0.00017395,2]
[352132029,1738956681934,-500.0,0.00017395,2]
[352132030,1738956681943,-500.0,0.00017395,2]
[352132031,1738956681954,-500.0,0.00017395,2]
[352132032,1738956681963,-500.0,0.00017395,2]
[352132033,1738956681973,-500.0,0.00017395,2]
[352132034,1738956681982,-500.0,0.00017395,2]
[352132035,1738956681991,-500.0,0.00017395,2]
[352132036,1738956682000,-500.0,0.00017395,2]
[352132037,1738956682010,-500.0,0.00017395,2]
[352132038,1738956682019,-500.0,0.00017395,2]
[352132039,1738956682028,-535.88,0.00017395,2]
[352132040,1738956682039,-500.0,0.00017395,2]
[352132041,1738956682049,-500.0,0.00017395,2]
[352132042,1738956682059,-234.33,0.00017395,2]
[352132043,1738956682068,-483.96,0.00017395,2]
[352132044,1738956682077,-500.0,0.00017395,2]
[352132045,1738956682087,-500.0,0.00017395,2]
[352132046,1738956682096,-500.0,0.00017395,2]
[352132047,1738956682106,-500.0,0.00017395,2]
[352132048,1738956682116,-500.0,0.00017395,2]
[352132049,1738956682125,-500.0,0.00017395,2]
[352132050,1738956682134,-500.0,0.00017395,2]
[352132051,1738956682144,-500.0,0.00017395,2]
[352132052,1738956682153,-500.0,0.00017395,2]
[352132053,1738956682162,-540.67,0.00017395,2]
[352132054,1738956682171,-557.1,0.00017395,2]
[352132055,1738956682180,-500.0,0.00017395,2]
[352132056,1738956682189,-406.13590624,0.00017395,2]
[352132057,1738956682199,-500.0,0.00017395,2]
[352132058,1738956682208,-500.0,0.00017395,2]
[352132059,1738956682217,-500.0,0.00017395,2]
[352132060,1738956682227,-500.0,0.00017395,2]
[352132061,1738956682237,-510.45105073,0.00017395,2]
[352132062,1738956682246,-444.64098013,0.00017395,2]
[352132063,1738956682255,-500.0,0.00017395,2]
[352132064,1738956682265,-530.71,0.00017395,2]
[352132065,1738956682275,-500.0,0.00017395,2]
[352132066,1738956682285,-2942.64,0.00017395,2]
[352132067,1738956682296,-500.0,0.00017395,2]
[352132068,1738956682306,-1743.62,0.00017395,2]
[352132069,1738956682316,-500.0,0.00017395,2]
[352132070,1738956682326,-720.06,0.00017395,2]
[352132071,1738956682336,-5046.81,0.00017395,2]
[352132072,1738956682346,-500.0,0.00017395,2]
[352132073,1738956682356,-281.86,0.00017395,2]
[352132074,1738956682366,-500.0,0.00017395,2]
[352132075,1738956682376,-500.0,0.00017395,2]
[352132076,1738956682385,-1994.07,0.00017395,2]
[352132077,1738956682396,-1138.25,0.00017395,2]
[352132078,1738956682406,-500.0,0.00017395,2]
[352132079,1738956682416,-500.0,0.00017395,2]
[352132080,1738956682425,-3516.18,0.00017395,2]
[352132081,1738956682436,-500.0,0.00017395,2]
[352132082,1738956682446,-500.0,0.00017395,2]
[352132083,1738956682456,-1024.51,0.00017395,2]
[352132084,1738956682466,-2173.49,0.00017395,2]
[352132085,1738956682476,-612.99,0.00017395,2]
[352132086,1738956682486,-1229.36,0.00017395,2]
[352132087,1738956682496,-2227.07,0.00017395,2]
[352132088,1738956682505,-552.13,0.00017395,2]
[352132089,1738956682515,-2301.73,0.00017395,2]
[352132090,1738956682525,-1183.89,0.00017395,2]
[352132091,1738956682535,-518.71,0.00017395,2]
[352132092,1738956682546,-2133.71,0.00017395,2]
[352132093,1738956682556,-500.0,0.00017395,2]
[352132094,1738956682566,-2304.96,0.00017395,2]
[352132095,1738956682578,-4101.49,0.00017395,2]
[352132096,1738956682588,-629.73,0.00017395,2]
[352132097,1738956682598,-10904.08,0.00017395,2]
[352132098,1738956682608,-1990.52,0.00017395,2]
[352132099,1738956682619,-500.0,0.00017395,2]
[352132100,1738956682631,-1994.74,0.00017395,2]
[352132101,1738956682640,-500.0,0.00017395,2]
[352132102,1738956682651,-2018.74,0.00017395,2]
[352132103,1738956682662,-500.0,0.00017395,2]
[352132104,1738956682673,-500.0,0.00017395,2]
[352132105,1738956682683,-500.0,0.00017395,2]
[352132106,1738956682832,-500.0,0.00017395,2]
[352132107,1738956682842,-1695.7,0.00017395,2]
[352132108,1738956682852,-3966.69,0.00017395,2]
[352132109,1738956682862,-662.29,0.00017395,2]
[352132110,1738956682871,-1062.51,0.00017396,2]
[352132111,1738956682881,-500.0,0.00017396,2]
[352132112,1738956682890,-1219.59,0.00017396,2]
[352132113,1738956682900,-857.35,0.00017396,2]
[352132114,1738956682909,-500.0,0.00017396,2]
[352132115,1738956682919,-526.56,0.00017396,2]
[352132116,1738956682928,-500.0,0.00017396,2]
[352132117,1738956682938,-547.58,0.00017396,2]
[352132118,1738956682947,-500.0,0.00017396,2]
[352132119,1738956682957,-500.0,0.00017396,2]
[352132120,1738956682967,-1136.81,0.00017396,2]
[352132121,1738956682976,-533.79,0.00017396,2]
[352132122,1738956682986,-500.0,0.00017396,2]
[352132123,1738956682995,-500.0,0.00017396,2]